bitfinex-derivatives/quotes_SOLF0:USTF0_20250507
["timestamp","ask_amount","ask_price","bid_price","bid_amount"]
[1746653566698,6.7988,147.07,147.05,6.7992]
[1746653566888,1.35998912,147.06,147.05,6.7992]
[1746653568394,1.35998912,147.06,147.04,6.7996]
[1746653568698,1.35998912,147.06,147.02,29.68]
[1746653569799,1.35998912,147.06,147.03,6.8]
[1746653571201,6.7996,147.05,147.03,6.8]
[1746653571402,1.3601741,147.04,147.03,6.8]
[1746653578403,6.7965,147.12,147.09,6.7972]
[1746653578604,1.35952688,147.11,147.09,6.7972]
[1746653579201,1.35952688,147.11,147.1,6.797]
[1746653580006,616.88,147.17,147.11,6.7966]
[1746653580209,29.56,147.17,147.11,6.7966]
[1746653580707,6.7945,147.16,147.11,6.7966]
[1746653580911,29.56,147.17,147.11,6.7966]
[1746653581202,6.795,147.15,147.11,6.7966]
[1746653581812,29.56,147.17,147.08,2.0832]
[1746653582407,6.7943,147.16,147.08,2.0832]
[1746653582909,36.354,147.17,147.13,6.7953]
[1746653583106,29.56,147.17,147.13,6.7953]
[1746653583302,29.56,147.2,147.13,6.7953]
[1746653583610,6.7944,147.16,147.13,6.7953]
[1746653584311,6.7935,147.18,147.15,6.7947]
[1746653584511,29.56,147.2,147.15,6.7947]
[1746653584705,29.56,147.2,147.12,2.0015]
[1746653584916,6.7933,147.19,147.16,6.7941]
[1746653585507,6.7934,147.18,147.16,6.7941]
[1746653585701,0.53278,147.23,147.15,29.56]
[1746653586112,6.7921,147.21,147.15,29.56]
[1746653587210,6.7921,147.21,147.18,6.7932]
[1746653588406,6.7916,147.22,147.15,29.56]
[1746653589215,6.7921,147.21,147.15,29.56]
[1746653589712,0.53278,147.23,147.15,29.56]
[1746653591014,6.7916,147.22,147.19,6.7928]
[1746653592013,7.32378,147.23,147.2,6.7921]
[1746653592516,0.53278,147.23,147.19,29.54]
[1746653593018,0.53278,147.23,147.2,6.7923]
[1746653593219,0.53278,147.23,147.19,29.54]
[1746653593619,0.53278,147.23,147.21,6.7916]
[1746653593920,1.35851107,147.22,147.21,6.7916]
[1746653600629,1.35851107,147.22,147.19,29.54]
[1746653601219,1.35851107,147.22,147.19,36.3326]
[1746653601424,8.15021107,147.22,147.19,36.3326]
[1746653601733,6.7917,147.22,147.19,36.3326]
[1746653603530,7.32388,147.23,147.2,6.7923]
[1746653605336,6.7915,147.22,147.2,6.7923]
[1746653606038,7.32398,147.23,147.2,6.7923]
[1746653607637,7.32398,147.23,147.21,6.7919]
[1746653607836,0.53278,147.23,147.21,6.7919]
[1746653610840,0.53278,147.23,147.22,6.7915]
[1746653631170,8e-05,147.23,147.22,6.7915]
[1746653635575,36.2476,147.31,147.28,6.7884]
[1746653635773,6.7876,147.31,147.28,6.7884]
[1746653639274,6.7876,147.31,147.29,6.7882]
[1746653639883,6.787,147.32,147.3,6.7878]
[1746653641280,6.7867,147.33,147.26,29.46]
[1746653641982,38.2784,147.34,147.26,29.46]
[1746653642279,29.32,147.34,147.26,38.47091946]
[1746653642481,29.32,147.37,147.26,38.47091946]
[1746653642679,6.7853,147.36,147.33,6.7861]
[1746653642881,6.7853,147.36,147.27,6.3305]
[1746653643179,29.32,147.37,147.27,19.9085]
[1746653643482,2.0466,147.38,147.29,9.01091946]
[1746653643683,2.0466,147.38,147.35,6.7854]
[1746653644385,8.831,147.38,147.34,6.7858]
[1746653645182,6.7846,147.37,147.34,6.7858]
[1746653646385,6.7843,147.38,147.35,6.7853]
[1746653647077,6.7846,147.37,147.35,6.7853]
[1746653649284,6.7843,147.38,147.3,29.32]
[1746653649888,6.7843,147.38,147.35,6.7852]
[1746653650386,6.7843,147.38,147.36,6.785]
[1746653650989,6.7843,147.38,147.35,6.7853]
[1746653653493,6.7843,147.38,147.36,6.785]
[1746653654291,33.4203,147.41,147.36,6.785]
[1746653654492,31.3856,147.41,147.36,6.785]
[1746653654894,6.7839,147.39,147.36,6.785]
[1746653655495,6.7839,147.39,147.36,6.7847]
[1746653656391,6.7835,147.4,147.37,6.7845]
[1746653656586,2.0725,147.45,147.35,9.01091946]
[1746653657387,6.7821,147.43,147.4,6.783]
[1746653657588,2.0725,147.45,147.38,29.32]
[1746653657987,6.782,147.43,147.41,6.7827]
[1746653658296,31.3606,147.46,147.38,29.32]
[1746653658989,8.13808399,147.44,147.41,6.7825]
[1746653660290,8.13808399,147.44,147.38,29.32]
[1746653660291,1.35648399,147.44,147.38,29.32]
[1746653660995,6.783,147.41,147.39,6.7836]
[1746653661295,1.35648399,147.44,147.38,29.32]
[1746653661594,6.7821,147.43,147.4,6.7829]
[1746653661792,1.35648399,147.44,147.38,29.32]
[1746653661993,8.13788399,147.44,147.41,6.7825]
[1746653663191,1.35648399,147.44,147.38,29.32]
[1746653664199,1.35648399,147.44,147.43,6.7818]
[1746653671498,1.35611608,147.48,147.46,6.7802]
[1746653671997,8.13571608,147.48,147.46,6.7802]
[1746653672394,1.35611608,147.48,147.42,29.3]
[1746653672898,1.35611608,147.48,147.44,6.781]
[1746653673199,6.7803,147.47,147.44,6.781]
[1746653673999,6.7803,147.47,147.45,6.7808]
[1746653676500,6.7804,147.46,147.44,6.7812]
[1746653677599,1.35611608,147.48,147.44,6.7812]
[1746653677799,6.7802,147.47,147.45,6.7808]
[1746653677999,1.35611608,147.48,147.42,29.3]
[1746653678199,6.7804,147.46,147.44,6.781]
[1746653678502,1.35611608,147.48,147.44,6.781]
[1746653678803,6.7803,147.47,147.44,6.781]
[1746653679002,1.35611608,147.48,147.44,6.781]
[1746653679700,6.7804,147.47,147.44,6.781]
[1746653679904,1.35611608,147.48,147.44,6.781]
[1746653680403,6.7808,147.46,147.43,6.7816]
[1746653681106,1.35611608,147.48,147.43,6.7816]
[1746653681901,6.7808,147.46,147.43,6.7816]
[1746653682101,1.35611608,147.48,147.43,6.7816]
[1746653682406,6.7809,147.45,147.43,6.7816]
[1746653683410,29.14,147.47,147.39,33.5077]
[1746653683802,6.7819,147.43,147.41,6.7824]
[1746653684107,6.7819,147.43,147.39,33.5077]
[1746653684310,6.7816,147.44,147.42,6.7823]
[1746653685305,6.7811,147.45,147.43,6.7818]
[1746653685606,29.14,147.47,147.39,33.5077]
[1746653685809,6.7814,147.44,147.42,6.7821]
[1746653689308,6.7814,147.44,147.41,6.7825]
[1746653690407,6.7818,147.43,147.41,6.7825]
[1746653690802,29.14,147.47,147.4,6.7829]
[1746653690999,6.7826,147.42,147.4,6.7829]
[1746653691196,6.7826,147.42,147.39,29.14]
[1746653691703,39.0260359,147.47,147.4,5.7518359]
[1746653692006,39.0260359,147.47,147.41,6.7827]
[1746653692711,6.7815,147.44,147.41,6.7827]
[1746653693008,6.7815,147.44,147.42,6.7822]
[1746653694005,6.7811,147.45,147.42,6.7822]
[1746653694205,34.8918359,147.47,147.4,5.7518359]
[1746653694410,29.14,147.47,147.44,6.7813]
[1746653695107,6.7808,147.46,147.44,6.7813]
[1746653697506,6.7808,147.46,147.43,6.7816]
[1746653698311,6.781,147.45,147.43,6.7816]
[1746653699312,6.7814,147.44,147.42,6.7821]
[1746653699513,6.7814,147.44,147.39,34.8918359]
[1746653700214,6.7819,147.43,147.39,34.8918359]
[1746653700409,6.7819,147.43,147.36,2.0323]
[1746653700410,6.7819,147.43,147.35,599.8508]
[1746653700615,5.7518359,147.42,147.35,5.7518359]
[1746653700814,6.783,147.41,147.35,5.7518359]
[1746653701317,6.783,147.41,147.38,6.7839]
[1746653701715,6.7833,147.4,147.38,6.7839]
[1746653702213,6.7833,147.4,147.37,6.7843]
[1746653702414,6.7837,147.39,147.37,6.7843]
[1746653702616,29.0,147.43,147.37,6.7843]
[1746653702919,6.7834,147.4,147.38,6.7841]
[1746653703117,29.0,147.43,147.34,29.0]
[1746653703417,29.0,147.43,147.37,6.7844]
[1746653704318,29.0,147.43,147.38,6.784]
[1746653704920,6.7832,147.4,147.38,6.784]
[1746653705817,6.7832,147.4,147.34,29.0]
[1746653706120,29.0,147.43,147.34,29.0]
[1746653706519,6.7839,147.39,147.37,6.7845]
[1746653706717,6.7839,147.39,147.34,29.0]
[1746653707024,6.7842,147.38,147.34,29.0]
[1746653707823,6.7842,147.38,147.35,6.7851]
[1746653708922,6.7846,147.37,147.35,6.7851]
[1746653709421,8.99134591,147.42,147.34,35.7857]
[1746653709722,8.99134591,147.42,147.34,6.7857]
[1746653709913,6.7853,147.36,147.33,6.7861]
[1746653711024,6.7858,147.35,147.33,6.7863]
[1746653711227,6.7858,147.35,147.31,29.02]
[1746653711524,6.7858,147.35,147.32,6.7866]
[1746653712024,6.7858,147.35,147.33,6.7863]
[1746653712227,6.7852,147.36,147.31,29.02]
[1746653713826,6.7852,147.36,147.33,6.7861]
[1746653714229,6.7848,147.37,147.31,29.02]
[1746653714422,6.7848,147.37,147.34,6.7856]
[1746653715026,6.7851,147.36,147.34,6.7856]
[1746653715225,29.02,147.39,147.34,6.7856]
[1746653715625,6.785,147.37,147.34,6.7856]
[1746653719226,6.785,147.37,147.35,6.7855]
[1746653720522,29.02,147.39,147.31,29.02]
[1746653721027,6.7854,147.36,147.33,6.7862]
[1746653721228,1.35731252,147.35,147.31,29.02]
[1746653721829,1.35731252,147.35,147.31,34.77788212]
[1746653724031,1.35731252,147.35,147.34,6.786]
[1746653726234,1.35731252,147.35,147.33,6.7862]
[1746653730442,8.14281252,147.35,147.33,6.7862]
[1746653731941,1.35731252,147.35,147.33,6.7862]
[1746653732940,1.35731252,147.35,147.34,6.786]
[1746653745941,28.96,147.42,147.33,5.75788212]
[1746653746145,1.35676005,147.41,147.38,6.7839]
[1746653746345,1.35676005,147.41,147.35,5.75788212]
[1746653746646,1.35676005,147.41,147.37,5.75788212]
[1746653747236,1.35676005,147.41,147.4,6.7832]
[1746653747742,28.96,147.46,147.45,6.7809]
[1746653748247,12.53808212,147.47,147.45,6.7809]
[1746653748445,13.89429016,147.47,147.45,6.7809]
[1746653748745,13.89429016,147.47,147.44,6.7813]
[1746653749246,1.35620804,147.47,147.41,5.75788212]
[1746653749448,1.35620804,147.47,147.43,5.75788212]
[1746653749751,1.35620804,147.47,147.4,4.0498]
[1746653749752,1.35620804,147.47,147.4,13.03199816]
[1746653750747,1.35620804,147.47,147.45,6.7807]
[1746653751548,1.35620804,147.47,147.46,6.7804]
[1746653756752,6.7774,147.53,147.43,37.92219816]
[1746653756947,31.038,147.55,147.43,37.92219816]
[1746653757453,6.7771,147.54,147.5,6.7783]
[1746653758053,6.7774,147.53,147.5,6.7783]
[1746653759249,6.777,147.54,147.48,28.94]
[1746653759454,28.94,147.55,147.48,28.94]
[1746653760056,6.7773,147.53,147.5,6.7783]
[1746653760352,6.7773,147.53,147.48,28.94]
[1746653760549,28.94,147.55,147.48,28.94]
[1746653760749,6.7771,147.54,147.51,6.7779]
[1746653761556,6.7773,147.53,147.51,6.7779]
[1746653761856,28.94,147.55,147.51,6.7779]
[1746653762153,6.777,147.54,147.51,6.7779]
[1746653763464,6.7772,147.53,147.51,6.7779]
[1746653763751,28.94,147.55,147.51,6.7779]
[1746653764444,6.7771,147.54,147.51,6.7779]
[1746653764758,28.94,147.55,147.51,6.7779]
[1746653765055,6.7773,147.53,147.51,6.7779]
[1746653765349,28.94,147.55,147.48,31.0727]
[1746653765551,30.29547272,147.55,147.48,28.94]
[1746653766355,6.7789,147.5,147.48,28.94]
[1746653766657,6.7789,147.5,147.47,11.0417]
[1746653769761,6.7791,147.49,147.47,8.8623]
[1746653770058,6.7791,147.49,147.45,28.92]
[1746653770261,30.29547272,147.55,147.45,28.92]
[1746653770657,8.98219816,147.53,147.45,28.92]
[1746653770857,2.0961,147.52,147.45,28.92]
[1746653771060,28.92,147.51,147.45,35.7008]
[1746653771963,6.78,147.47,147.45,35.7008]
[1746653774362,6.7796,147.48,147.46,6.7804]
[1746653779268,6.7794,147.49,147.46,6.7801]
[1746653779465,28.92,147.51,147.45,28.92]
[1746653779662,28.92,147.51,147.43,1.9988]
[1746653779861,6.7802,147.47,147.45,6.7808]
[1746653781268,6.7797,147.48,147.45,6.7808]
[1746653782871,6.78,147.47,147.45,6.7808]
[1746653784266,6.7798,147.48,147.46,6.7804]
[1746653786274,6.7793,147.49,147.47,6.78]
[1746653787781,6.7795,147.48,147.47,6.78]
[1746653788079,6.7795,147.48,147.46,6.7802]
[1746653790480,6.7793,147.49,147.47,6.78]
[1746653790682,28.92,147.51,147.43,1.9988]
[1746653791081,6.7788,147.5,147.43,1.9988]
[1746653791277,28.92,147.51,147.43,1.9988]
[1746653791479,3.39826459,147.54,147.43,1.9988]
[1746653791783,6.7784,147.51,147.49,6.779]
[1746653791982,6.7784,147.51,147.46,28.92]
[1746653792280,6.7784,147.51,147.48,6.7792]
[1746653793081,6.7784,147.51,147.49,6.779]
[1746653793676,1.35556459,147.54,147.46,28.92]
[1746653793981,1.35556459,147.54,147.47,4.2374]
[1746653794379,1.35556459,147.54,147.53,6.7772]
[1746653797585,4.1222,147.62,147.55,6.776]
[1746653797586,28.9,147.61,147.55,6.776]
[1746653799389,28.9,147.61,147.5,28.92]
[1746653799583,6.775,147.58,147.51,8.98407479]
[1746653800290,6.775,147.58,147.56,6.7758]
[1746653800689,6.7743,147.6,147.57,6.7751]
[1746653801293,6.7736,147.61,147.58,6.7749]
[1746653804593,6.774,147.6,147.58,6.7749]
[1746653806093,6.7738,147.61,147.58,6.7749]
[1746653809291,6.7738,147.61,147.54,37.86713391]
[1746653809496,6.7738,147.61,147.55,1.9748]
[1746653809793,6.7738,147.61,147.58,6.7746]
[1746653811496,6.7738,147.61,147.55,1.9748]
[1746653811690,6.7738,147.61,147.55,6.2081]
[1746653812300,6.7732,147.62,147.55,6.2081]
[1746653813297,6.7732,147.62,147.59,6.7741]
[1746653813490,6.7732,147.62,147.55,6.2081]
[1746653813999,6.7732,147.62,147.6,6.7738]
[1746653814297,28.9,147.63,147.57,8.96713391]
[1746653814298,35.6726,147.63,147.57,8.96713391]
[1746653814499,35.6726,147.63,147.6,6.7736]
[1746653814693,35.6726,147.63,147.57,8.96713391]
[1746653815698,35.6726,147.63,147.61,6.7735]
[1746653816499,35.6726,147.63,147.6,6.7738]
[1746653817898,6.7724,147.64,147.58,28.9]
[1746653818299,6.7724,147.64,147.61,6.7733]
[1746653818797,6.7724,147.64,147.58,28.9]
[1746653819497,6.7724,147.64,147.62,6.7728]
[1746653819996,6.7719,147.65,147.62,6.7728]
[1746653820195,28.9,147.66,147.62,6.7728]
[1746653820899,6.7718,147.65,147.62,6.7728]
[1746653821291,6.7718,147.65,147.6,8.96317544]
[1746653821499,6.7718,147.65,147.61,1.9835]
[1746653821802,6.7715,147.66,147.63,6.7722]
[1746653822004,6.7715,147.66,147.62,28.88]
[1746653822199,6.771,147.67,147.62,28.88]
[1746653822498,28.88,147.68,147.64,6.772]
[1746653822999,6.7709,147.67,147.64,6.772]
[1746653823196,6.7709,147.67,147.65,6.7717]
[1746653823603,6.7709,147.67,147.62,28.88]
[1746653823898,6.7709,147.67,147.64,6.7719]
[1746653824100,6.7713,147.66,147.64,6.7719]
[1746653824300,28.88,147.68,147.65,6.7715]
[1746653824801,35.6506,147.68,147.65,6.7715]
[1746653825198,6.7706,147.68,147.65,6.7715]
[1746653825502,28.88,147.71,147.66,6.7709]
[1746653825703,6.7703,147.69,147.66,6.7709]
[1746653826203,6.7704,147.68,147.66,6.7709]
[1746653828806,6.7701,147.69,147.66,6.7709]
[1746653829005,28.88,147.71,147.66,6.7709]
[1746653829402,6.7702,147.69,147.66,6.7709]
[1746653829705,28.88,147.71,147.66,6.7709]
[1746653829904,6.7703,147.69,147.66,6.7709]
[1746653830104,28.88,147.71,147.66,6.7709]
[1746653830406,6.7704,147.68,147.66,6.7709]
[1746653831302,587.5282,147.73,147.63,8.96317544]
[1746653831504,28.86,147.72,147.63,8.96317544]
[1746653831907,6.7697,147.7,147.67,6.7705]
[1746653832107,15.730214,147.7,147.51,20.4]
[1746653832303,6.7795,147.48,147.47,60.24630004]
[1746653832502,32.26,147.56,147.47,60.24630004]
[1746653832707,41.220514,147.56,147.47,60.24630004]
[1746653833309,8.960514,147.53,147.47,60.24630004]
[1746653833706,46.62866077,147.56,147.47,60.24630004]
[1746653833908,46.62866077,147.56,147.47,92.50630004]
[1746653834109,6.7795,147.49,147.47,92.50630004]
[1746653834510,46.62866077,147.56,147.47,32.26]
[1746653836312,14.36866077,147.5,147.25,13.5796]
[1746653836514,14.36866077,147.5,147.34,38.5344]
[1746653836811,6.7827,147.41,147.34,38.5344]
[1746653837114,15.72459297,147.5,147.34,6.2544]
[1746653837115,14.36866077,147.46,147.34,6.2544]
[1746653837315,6.7842,147.38,147.35,32.28]
[1746653837813,6.7847,147.37,147.35,32.28]
[1746653841218,32.28,147.47,147.35,32.28]
[1746653841413,1.35630001,147.46,147.35,32.28]
[1746653842218,6.783,147.41,147.36,6.785]
[1746653843109,1.35630001,147.46,147.35,32.28]
[1746653843619,6.784,147.39,147.35,32.28]
[1746653843821,32.3,147.43,147.18,33.9647]
[1746653844013,32.3,147.43,147.28,14.38760177]
[1746653844210,32.3,147.43,147.29,34.4357]
[1746653844416,32.3,147.43,147.3,3.9986]
[1746653844820,32.3,147.43,147.33,6.7861]
[1746653845018,32.3,147.43,147.34,32.3]
[1746653845715,6.7838,147.39,147.34,39.0856]
[1746653846223,6.7836,147.4,147.35,6.7852]
[1746653846418,32.3,147.43,147.34,32.3]
[1746653846621,33.65630001,147.46,147.34,32.3]
[1746653847921,6.7818,147.44,147.39,6.7833]
[1746653848115,6.7818,147.44,147.39,39.0833]
[1746653848424,6.7818,147.43,147.4,6.7831]
[1746653849228,6.7816,147.44,147.41,6.7827]
[1746653849826,6.7824,147.42,147.39,39.0836]
[1746653850128,48.04390178,147.46,147.39,32.3]
[1746653850518,33.65630001,147.46,147.39,32.3]
[1746653851329,6.7821,147.43,147.39,32.3]
[1746653851628,33.65630001,147.46,147.39,32.3]
[1746653852129,6.7822,147.43,147.39,39.0835]
[1746653852626,6.7832,147.4,147.39,32.3]
[1746653852828,14.3827182,147.45,147.35,32.3]
[1746653853229,6.7835,147.4,147.37,6.7845]
[1746653854237,6.7826,147.42,147.38,6.7839]
[1746653854525,33.65630001,147.46,147.38,6.7839]
[1746653855934,33.65630001,147.46,147.38,6.784]
[1746653856133,6.7824,147.42,147.38,6.784]
[1746653856433,33.65630001,147.46,147.35,32.3]
[1746653856629,6.7822,147.43,147.4,6.7829]
[1746653856837,33.65630001,147.46,147.37,4.107]
[1746653857133,6.782,147.43,147.37,4.107]
[1746653857529,6.7823,147.42,147.37,4.107]
[1746653857833,33.65630001,147.46,147.37,4.107]
[1746653858231,6.7822,147.43,147.4,6.7831]
[1746653858528,6.7822,147.43,147.37,4.107]
[1746653858736,6.7822,147.43,147.39,6.7833]
[1746653859036,6.7823,147.42,147.39,6.7833]
[1746653859230,33.65630001,147.46,147.37,4.107]
[1746653859426,33.65630001,147.46,147.4,6.783]
[1746653859837,6.7821,147.43,147.4,6.783]
[1746653861243,6.7821,147.43,147.37,4.107]
[1746653861244,6.7824,147.42,147.39,6.7834]
[1746653861433,33.65630001,147.46,147.37,4.107]
[1746653861738,6.7821,147.43,147.4,6.7832]
[1746653863535,33.65630001,147.46,147.39,6.7836]
[1746653864040,6.7826,147.42,147.39,6.7836]
[1746653864341,6.7826,147.42,147.4,6.7831]
[1746653866342,6.7826,147.42,147.39,6.7835]
[1746653867540,33.65630001,147.46,147.37,10.8915]
[1746653867742,33.65630001,147.46,147.37,4.107]
[1746653867935,33.65630001,147.46,147.35,32.3]
[1746653868136,6.784,147.39,147.35,39.0852]
[1746653870040,31.94,147.42,147.3,6.3906]
[1746653870041,31.94,147.42,147.32,31.94]
[1746653870338,1.35676005,147.41,147.32,31.94]
[1746653870647,6.7862,147.34,147.32,31.94]
[1746653870939,31.94,147.38,147.32,31.94]
[1746653871140,6.7864,147.34,147.3,11.0184]
[1746653871340,31.94,147.38,147.3,4.2309]
[1746653871541,6.7862,147.34,147.3,11.0183]
[1746653872242,6.7862,147.34,147.31,6.7873]
[1746653872438,6.7857,147.35,147.31,6.7873]
[1746653873141,6.7857,147.35,147.32,6.7869]
[1746653873346,6.7853,147.36,147.32,6.7869]
[1746653874447,6.7855,147.35,147.32,6.7869]
[1746653875647,6.7855,147.35,147.33,6.7864]
[1746653875846,31.94,147.38,147.33,6.7864]
[1746653876049,31.94,147.38,147.3,4.2309]
[1746653876347,31.94,147.38,147.26,31.94]
[1746653876539,14.39080691,147.36,147.26,31.94]
[1746653876847,14.39080691,147.36,147.29,6.788]
[1746653877044,14.39080691,147.36,147.26,31.94]
[1746653877851,6.7879,147.3,147.27,6.7889]
[1746653878242,31.96,147.33,147.26,31.94]
[1746653878447,46.35080691,147.33,147.22,31.96]
[1746653878949,6.789,147.28,147.24,6.7903]
[1746653879954,31.96,147.29,147.22,31.96]
[1746653880251,31.96,147.29,147.21,4.2996]
[1746653880451,6.7905,147.25,147.21,11.0911]
[1746653880652,14.39080691,147.27,147.08,61.43873048]
[1746653880852,31.96,147.26,147.15,4.2926]
[1746653881046,31.96,147.26,147.16,6.794]
[1746653881246,1.35823429,147.25,147.15,4.2926]
[1746653881551,6.7927,147.2,147.15,4.2926]
[1746653881847,1.35823429,147.25,147.15,4.2926]
[1746653882053,6.7923,147.21,147.16,6.7942]
[1746653882248,6.7923,147.21,147.15,4.2926]
[1746653882249,31.96,147.22,147.15,4.2926]
[1746653882947,6.7927,147.2,147.15,11.087]
[1746653883552,6.7927,147.2,147.16,6.7941]
[1746653885455,6.7926,147.2,147.16,6.7941]
[1746653885754,6.7926,147.2,147.17,6.7937]
[1746653885949,6.7926,147.2,147.15,4.2926]
[1746653886252,6.7926,147.2,147.16,6.7939]
[1746653889654,6.793,147.19,147.15,11.0871]
[1746653890055,31.96,147.22,147.15,11.0871]
[1746653890353,6.7932,147.19,147.15,11.0871]
[1746653891454,31.96,147.22,147.13,6.7953]
[1746653891649,1.35860335,147.21,147.1,34.0374]
[1746653891851,6.7945,147.16,147.12,6.7958]
[1746653892556,6.7947,147.15,147.12,6.7958]
[1746653893552,6.7947,147.15,147.1,34.0374]
[1746653894053,6.7944,147.16,147.13,6.7956]
[1746653894452,31.98,147.18,147.12,6.7959]
[1746653894656,6.7951,147.15,147.1,34.0374]
[1746653894956,6.7951,147.15,147.12,6.7957]
[1746653895751,6.7951,147.15,147.13,6.7955]
[1746653898763,6.7945,147.16,147.13,6.7955]
[1746653900763,6.7948,147.15,147.13,6.7955]
[1746653903465,6.7944,147.16,147.13,6.7955]
[1746653906267,6.7944,147.16,147.14,6.7951]
[1746653907763,6.794,147.17,147.14,6.7951]
[1746653909372,6.7943,147.16,147.14,6.7951]
[1746653909567,31.98,147.18,147.14,6.7951]
[1746653909773,31.98,147.18,147.1,34.0374]
[1746653909970,31.98,147.18,147.1,43.05940135]
[1746653910567,31.98,147.18,147.16,6.7939]
[1746653910871,31.98,147.18,147.1,43.05940135]
[1746653911072,31.98,147.18,147.17,6.7938]
[1746653911472,31.98,147.18,147.16,6.7941]
[1746653913072,31.98,147.18,147.15,6.7945]
[1746653913275,38.7735,147.18,147.15,6.7945]
[1746653915275,38.7735,147.18,147.1,56.65320135]
[1746653915875,6.7938,147.17,147.15,6.7945]
[1746653916275,31.98,147.18,147.1,56.65320135]
[1746653916577,38.7735,147.18,147.16,6.7941]
[1746653916875,38.7735,147.18,147.1,56.65320135]
[1746653918078,38.7735,147.18,147.16,6.7942]
[1746653922376,31.98,147.18,147.16,6.7942]
[1746653922675,31.98,147.18,147.1,56.65320135]
[1746653922875,31.98,147.18,147.17,6.7938]
[1746653929382,31.98,147.18,147.1,56.65320135]
[1746653929579,38.7733,147.18,147.1,56.65320135]
[1746653929776,31.98,147.18,147.1,56.65320135]
[1746653929980,31.98,147.18,147.17,6.7938]
[1746653932387,1.35860335,147.21,147.2,6.7924]
[1746653933481,1.35860335,147.21,147.18,6.7932]
[1746653935087,1.35860335,147.21,147.17,1.978]
[1746653936589,6.7933,147.19,147.17,1.978]
[1746653936790,1.35860335,147.21,147.17,1.978]
[1746653937088,1.35860335,147.21,147.16,2.1472]
[1746653937296,1.35860335,147.21,147.12,30.76]
[1746653937497,9.02200135,147.2,147.12,30.76]
[1746653937898,6.7956,147.13,147.12,30.76]
[1746653938194,6.7956,147.13,147.11,6.0947]
[1746653940394,6.7961,147.12,147.11,6.0947]
[1746653948000,6.7961,147.12,147.11,3.9934]
[1746653959009,6.7974,147.1,147.07,30.3]
[1746653959209,5.77551697,147.12,147.07,30.3]
[1746653959709,6.798,147.08,147.07,30.3]
[1746653959902,5.77551697,147.12,147.05,2.0718]
[1746653960107,6.7988,147.07,147.04,46.99091697]
[1746653960307,5.77551697,147.1,147.04,46.99091697]
[1746653960605,6.7988,147.07,147.04,46.99091697]
[1746653961211,5.77551697,147.1,147.04,32.4097]
[1746653961414,5.77551697,147.1,147.04,30.3]
[1746653961813,6.7992,147.06,147.04,30.3]
[1746653962714,6.7986,147.07,147.04,30.3]
[1746653963007,6.7986,147.07,147.04,37.0996]
[1746653963514,6.7982,147.08,147.04,37.0996]
[1746653963813,6.7982,147.08,147.05,6.7992]
[1746653964116,6.7983,147.08,147.04,30.3]
[1746653964912,6.7983,147.08,147.05,6.7991]
[1746653965116,6.7983,147.08,147.04,30.3]
[1746653965317,6.7984,147.07,147.04,30.3]
[1746653965512,6.7984,147.07,147.05,6.7991]
[1746653968318,6.7989,147.06,147.04,6.7997]
[1746653968618,6.7989,147.06,147.02,4.1229]
[1746653968912,6.7977,147.09,147.06,6.7986]
[1746653969120,30.3,147.1,147.02,4.1229]
[1746653969312,6.7981,147.08,147.05,6.7993]